[Event "Titled Tuesday Blitz January 31 Early 2023"]
[White "Panesso Rivera, Henry"]
[Black "Lopez Idarraga, Daniel Eduardo"]
[WhiteFideId "4402707"]
[BlackFideId "4405501"]
[WhiteElo "2342"]
[BlackElo "2009"]
[Result "1-0"]
[Round "02"]
[TimeControl "180+2"]
[Date "2023.01.31"]
[WhiteClock "0:00:10"]
[BlackClock "0:00:01"]

1. Nf3 {[%clk 0:03:00]}  Nf6 {[%clk 0:02:58]} 2. b3 {[%clk 0:03:00]}  d5 {[%clk 0:02:49]} 3. Bb2 {[%clk 0:03:01]}  e6 {[%clk 0:02:48]} 4. e3 {[%clk 0:03:01]}  Be7 {[%clk 0:02:48]} 5. d4 {[%clk 0:03:01]}  O-O {[%clk 0:02:49]} 6. Nbd2 {[%clk 0:03:00]}  b6 {[%clk 0:02:49]} 7. Bd3 {[%clk 0:03:00]}  Ba6 {[%clk 0:02:49]} 8. O-O {[%clk 0:03:00]}  c5 {[%clk 0:02:48]} 9. Qe2 {[%clk 0:02:59]}  Bxd3 {[%clk 0:02:47]} 10. cxd3 {[%clk 0:03:00]}  Nc6 {[%clk 0:02:45]} 11. Rfc1 {[%clk 0:02:59]}  Rc8 {[%clk 0:02:39]} 12. a3 {[%clk 0:02:47]}  Nd7 {[%clk 0:02:36]} 13. dxc5 {[%clk 0:02:47]}  bxc5 {[%clk 0:02:35]} 14. Rab1 {[%clk 0:02:21]}  Qb6 {[%clk 0:02:28]} 15. d4 {[%clk 0:02:17]}  cxd4 {[%clk 0:02:26]} 16. Nxd4 {[%clk 0:02:18]}  Nxd4 {[%clk 0:02:25]} 17. Bxd4 {[%clk 0:02:17]}  Qb8 {[%clk 0:02:19]} 18. Qa6 {[%clk 0:02:11]}  Bc5 {[%clk 0:02:11]} 19. b4 {[%clk 0:01:31]}  Bxd4 {[%clk 0:02:09]} 20. exd4 {[%clk 0:01:32]}  Rxc1+ {[%clk 0:01:36]} 21. Rxc1 {[%clk 0:01:31]}  Qf4 {[%clk 0:01:37]} 22. Nb3 {[%clk 0:01:19]}  Nf6 {[%clk 0:01:28]} 23. Qd3 {[%clk 0:00:53]}  Ng4 {[%clk 0:00:58]} 24. Qg3 {[%clk 0:00:47]}  Qe4 {[%clk 0:00:51]} 25. Qf3 {[%clk 0:00:43]}  Qg6 {[%clk 0:00:39]} 26. h3 {[%clk 0:00:35]}  Nf6 {[%clk 0:00:38]} 27. Qe2 {[%clk 0:00:21]}  Nd7 {[%clk 0:00:19]} 28. Qc2 {[%clk 0:00:20]}  Nb6 {[%clk 0:00:19]} 29. Qxg6 {[%clk 0:00:20]}  hxg6 {[%clk 0:00:20]} 30. Na5 {[%clk 0:00:21]}  Rc8 {[%clk 0:00:18]} 31. Rc5 {[%clk 0:00:20]}  Kf8 {[%clk 0:00:17]} 32. Kf1 {[%clk 0:00:20]}  Ke7 {[%clk 0:00:17]} 33. Nc6+ {[%clk 0:00:21]}  Kd6 {[%clk 0:00:16]} 34. Nxa7 {[%clk 0:00:21]}  Ra8 {[%clk 0:00:15]} 35. Nb5+ {[%clk 0:00:20]}  Kd7 {[%clk 0:00:15]} 36. Rc7+ {[%clk 0:00:20]}  Ke8 {[%clk 0:00:15]} 37. Nd6+ {[%clk 0:00:19]}  Kf8 {[%clk 0:00:13]} 38. Rxf7+ {[%clk 0:00:19]}  Kg8 {[%clk 0:00:14]} 39. Rb7 {[%clk 0:00:19]}  Nc4 {[%clk 0:00:11]} 40. Nxc4 {[%clk 0:00:18]}  dxc4 {[%clk 0:00:12]} 41. Rc7 {[%clk 0:00:19]}  Rxa3 {[%clk 0:00:12]} 42. Rxc4 {[%clk 0:00:19]}  Ra2 {[%clk 0:00:10]} 43. Rc6 {[%clk 0:00:16]}  Rb2 {[%clk 0:00:09]} 44. Rxe6 {[%clk 0:00:15]}  Rxb4 {[%clk 0:00:08]} 45. Re4 {[%clk 0:00:15]}  Kf7 {[%clk 0:00:08]} 46. h4 {[%clk 0:00:16]}  Rb2 {[%clk 0:00:08]} 47. g3 {[%clk 0:00:15]}  Kf6 {[%clk 0:00:08]} 48. Kg2 {[%clk 0:00:16]}  g5 {[%clk 0:00:08]} 49. h5 {[%clk 0:00:14]}  Kf5 {[%clk 0:00:04]} 50. Re5+ {[%clk 0:00:13]}  Kf6 {[%clk 0:00:05]} 51. g4 {[%clk 0:00:13]}  Rd2 {[%clk 0:00:04]} 52. Rf5+ {[%clk 0:00:10]}  Ke7 {[%clk 0:00:03]} 53. d5 {[%clk 0:00:10]}  Rd4 {[%clk 0:00:01]} 54. f3 {[%clk 0:00:10]} 1-0


[Site "https://www.chess.com"]

[Event "Titled Tuesday Blitz January 31 Early 2023"]
[White "Lymar, Vladislav"]
[Black "Rian, Kapriaga"]
[WhiteFideId "14162180"]
[BlackFideId "7103263"]
[WhiteElo "2119"]
[BlackElo "2089"]
[Result "1-0"]
[Round "02"]
[TimeControl "180+2"]
[Date "2023.01.31"]
[WhiteClock "0:01:05"]
[BlackClock "0:00:04"]

1. e4 {[%clk 0:03:00]}  c6 {[%clk 0:02:55]} 2. d4 {[%clk 0:03:00]}  d5 {[%clk 0:02:55]} 3. e5 {[%clk 0:03:01]}  Bf5 {[%clk 0:02:54]} 4. h4 {[%clk 0:03:01]}  h5 {[%clk 0:02:53]} 5. Bd3 {[%clk 0:03:02]}  Bxd3 {[%clk 0:02:53]} 6. Qxd3 {[%clk 0:03:03]}  e6 {[%clk 0:02:49]} 7. Nf3 {[%clk 0:02:58]}  Qb6 {[%clk 0:02:46]} 8. O-O {[%clk 0:02:56]}  c5 {[%clk 0:02:46]} 9. a4 {[%clk 0:02:51]}  Nc6 {[%clk 0:02:41]} 10. Nbd2 {[%clk 0:02:43]}  Nge7 {[%clk 0:02:29]} 11. dxc5 {[%clk 0:02:36]}  Qc7 {[%clk 0:02:25]} 12. Re1 {[%clk 0:02:32]}  Nf5 {[%clk 0:02:19]} 13. Nb3 {[%clk 0:02:28]}  Be7 {[%clk 0:02:13]} 14. c3 {[%clk 0:02:11]}  Nxh4 {[%clk 0:01:59]} 15. Nxh4 {[%clk 0:02:11]}  Bxh4 {[%clk 0:01:58]} 16. Nd4 {[%clk 0:02:03]}  Nxe5 {[%clk 0:01:47]} 17. Qh3 {[%clk 0:02:03]}  Bf6 {[%clk 0:01:43]} 18. Nb5 {[%clk 0:02:00]}  Qxc5 {[%clk 0:01:38]} 19. Bf4 {[%clk 0:02:01]}  Ng4 {[%clk 0:01:26]} 20. Qf3 {[%clk 0:02:00]}  O-O {[%clk 0:01:02]} 21. Bd6 {[%clk 0:02:00]}  Qc6 {[%clk 0:01:01]} 22. Bxf8 {[%clk 0:01:59]}  Rxf8 {[%clk 0:00:56]} 23. Nxa7 {[%clk 0:01:59]}  Qc7 {[%clk 0:00:52]} 24. g3 {[%clk 0:01:51]}  Ne5 {[%clk 0:00:15]} 25. Qxh5 {[%clk 0:01:46]}  g6 {[%clk 0:00:15]} 26. Qe2 {[%clk 0:01:41]}  Kg7 {[%clk 0:00:14]} 27. Nb5 {[%clk 0:01:38]}  Qb8 {[%clk 0:00:14]} 28. Nd4 {[%clk 0:01:34]}  Rh8 {[%clk 0:00:12]} 29. Kg2 {[%clk 0:01:31]}  Nc4 {[%clk 0:00:10]} 30. Rh1 {[%clk 0:01:28]}  Qd6 {[%clk 0:00:04]} 31. Rxh8 {[%clk 0:01:23]}  Kxh8 {[%clk 0:00:05]} 32. Qf3 {[%clk 0:01:19]}  Kg7 {[%clk 0:00:05]} 33. b3 {[%clk 0:01:13]}  Nd2 {[%clk 0:00:04]} 34. Qe3 {[%clk 0:01:08]}  Ne4 {[%clk 0:00:04]} 35. Rh1 {[%clk 0:01:07]}  Kf8 {[%clk 0:00:04]} 36. Nb5 {[%clk 0:01:05]} 1-0


[Site "https://www.chess.com"]

[Event "Titled Tuesday Blitz January 31 Early 2023"]
[White "Ordekalog"]
[Black "Prieto Aranguren, Alain"]
[BlackFideId "2268906"]
[WhiteElo "2589"]
[BlackElo "2258"]
[Result "1-0"]
[Round "02"]
[TimeControl "180+2"]
[Date "2023.01.31"]
[WhiteClock "0:00:21"]
[BlackClock "0:00:13"]

1. d4 {[%clk 0:03:00]}  d5 {[%clk 0:02:58]} 2. c4 {[%clk 0:02:58]}  e6 {[%clk 0:02:57]} 3. cxd5 {[%clk 0:02:57]}  exd5 {[%clk 0:02:56]} 4. Nc3 {[%clk 0:02:56]}  Nf6 {[%clk 0:02:56]} 5. Bg5 {[%clk 0:02:56]}  Be7 {[%clk 0:02:56]} 6. e3 {[%clk 0:02:55]}  O-O {[%clk 0:02:54]} 7. Bd3 {[%clk 0:02:54]}  c6 {[%clk 0:02:52]} 8. Qc2 {[%clk 0:02:53]}  h6 {[%clk 0:02:49]} 9. Bh4 {[%clk 0:02:46]}  Re8 {[%clk 0:02:38]} 10. Nge2 {[%clk 0:02:45]}  Ne4 {[%clk 0:02:36]} 11. Bxe7 {[%clk 0:02:41]}  Qxe7 {[%clk 0:02:35]} 12. Bxe4 {[%clk 0:02:38]}  dxe4 {[%clk 0:02:35]} 13. Ng3 {[%clk 0:02:37]}  f5 {[%clk 0:02:30]} 14. O-O {[%clk 0:02:36]}  Na6 {[%clk 0:02:25]} 15. f3 {[%clk 0:02:34]}  exf3 {[%clk 0:02:24]} 16. Rxf3 {[%clk 0:02:33]}  Nb4 {[%clk 0:02:12]} 17. Qe2 {[%clk 0:02:09]}  Qg5 {[%clk 0:01:59]} 18. Qc4+ {[%clk 0:01:53]}  Nd5 {[%clk 0:01:58]} 19. Nxd5 {[%clk 0:01:53]}  cxd5 {[%clk 0:01:46]} 20. Qxd5+ {[%clk 0:01:50]}  Be6 {[%clk 0:01:46]} 21. Qxb7 {[%clk 0:01:36]}  Rab8 {[%clk 0:01:44]} 22. Qc6 {[%clk 0:01:34]}  Kh7 {[%clk 0:01:32]} 23. Raf1 {[%clk 0:01:27]}  Rbc8 {[%clk 0:01:14]} 24. Qa4 {[%clk 0:01:19]}  Bd5 {[%clk 0:01:06]} 25. Rxf5 {[%clk 0:01:11]}  Qxe3+ {[%clk 0:01:03]} 26. Kh1 {[%clk 0:00:59]}  Bc6 {[%clk 0:00:41]} 27. Qd1 {[%clk 0:00:55]}  Rcd8 {[%clk 0:00:36]} 28. d5 {[%clk 0:00:49]}  Bb5 {[%clk 0:00:34]} 29. R5f3 {[%clk 0:00:39]}  Qe5 {[%clk 0:00:26]} 30. Qc2+ {[%clk 0:00:38]}  Kh8 {[%clk 0:00:24]} 31. Rf5 {[%clk 0:00:35]}  Qxf5 {[%clk 0:00:17]} 32. Qxf5 {[%clk 0:00:33]}  Bxf1 {[%clk 0:00:17]} 33. Qxf1 {[%clk 0:00:26]}  Rxd5 {[%clk 0:00:16]} 34. h3 {[%clk 0:00:26]}  Red8 {[%clk 0:00:15]} 35. Qf3 {[%clk 0:00:25]}  Rd3 {[%clk 0:00:15]} 36. Qf4 {[%clk 0:00:23]}  R8d4 {[%clk 0:00:13]} 37. Qb8+ {[%clk 0:00:23]}  Kh7 {[%clk 0:00:13]} 38. Nf5 {[%clk 0:00:22]}  Rf4 {[%clk 0:00:13]} 39. Qxf4 {[%clk 0:00:21]} 1-0


[Site "https://www.chess.com"]

[Event "Titled Tuesday Blitz January 31 Early 2023"]
[White "Balint, Vilmos"]
[Black "Veiga, Jose Francisco R P Neves"]
[WhiteFideId "718050"]
[BlackFideId "1930087"]
[WhiteElo "2169"]
[BlackElo "2406"]
[Result "1-0"]
[Round "02"]
[TimeControl "180+2"]
[Date "2023.01.31"]
[WhiteClock "0:01:19"]
[BlackClock "0:01:33"]

1. e4 {[%clk 0:03:00]}  Nc6 {[%clk 0:03:00]} 2. d4 {[%clk 0:02:59]}  d5 {[%clk 0:02:59]} 3. e5 {[%clk 0:02:57]}  Bf5 {[%clk 0:02:59]} 4. g3 {[%clk 0:02:57]}  h5 {[%clk 0:02:57]} 5. h3 {[%clk 0:02:56]}  e6 {[%clk 0:02:57]} 6. Bg2 {[%clk 0:02:56]}  g5 {[%clk 0:02:54]} 7. Nf3 {[%clk 0:02:51]}  Be7 {[%clk 0:02:54]} 8. Be3 {[%clk 0:02:50]}  Be4 {[%clk 0:02:52]} 9. Nbd2 {[%clk 0:02:44]}  Bg6 {[%clk 0:02:52]} 10. a3 {[%clk 0:02:43]}  Nh6 {[%clk 0:02:52]} 11. Qe2 {[%clk 0:02:40]}  Nf5 {[%clk 0:02:52]} 12. O-O-O {[%clk 0:02:33]}  Qd7 {[%clk 0:02:51]} 13. Nxg5 {[%clk 0:02:22]}  Bxg5 {[%clk 0:02:50]} 14. Bxg5 {[%clk 0:02:22]}  Nfxd4 {[%clk 0:02:50]} 15. Qf1 {[%clk 0:02:18]}  Bxc2 {[%clk 0:02:49]} 16. Re1 {[%clk 0:02:17]}  Bg6 {[%clk 0:02:45]} 17. Re3 {[%clk 0:02:08]}  Na5 {[%clk 0:02:41]} 18. Rc3 {[%clk 0:02:05]}  Qa4 {[%clk 0:02:35]} 19. Qd1 {[%clk 0:02:02]}  Bc2 {[%clk 0:02:23]} 20. Rxc2 {[%clk 0:01:57]}  Nxc2 {[%clk 0:02:23]} 21. Qxc2 {[%clk 0:01:57]}  Qxc2+ {[%clk 0:02:22]} 22. Kxc2 {[%clk 0:01:57]}  c5 {[%clk 0:02:22]} 23. Bf6 {[%clk 0:01:55]}  Rg8 {[%clk 0:02:21]} 24. Bf3 {[%clk 0:01:54]}  h4 {[%clk 0:02:11]} 25. Bxh4 {[%clk 0:01:54]}  Nc6 {[%clk 0:02:11]} 26. Bf6 {[%clk 0:01:53]}  Nd4+ {[%clk 0:02:11]} 27. Kd1 {[%clk 0:01:52]}  Nxf3 {[%clk 0:02:12]} 28. Nxf3 {[%clk 0:01:52]}  Kd7 {[%clk 0:02:13]} 29. h4 {[%clk 0:01:52]}  Rg4 {[%clk 0:02:12]} 30. h5 {[%clk 0:01:52]}  b5 {[%clk 0:01:57]} 31. h6 {[%clk 0:01:52]}  a5 {[%clk 0:01:57]} 32. h7 {[%clk 0:01:52]}  b4 {[%clk 0:01:58]} 33. h8=Q {[%clk 0:01:52]}  Rxh8 {[%clk 0:01:57]} 34. Rxh8 {[%clk 0:01:52]}  bxa3 {[%clk 0:01:58]} 35. bxa3 {[%clk 0:01:53]}  Ra4 {[%clk 0:01:59]} 36. Rf8 {[%clk 0:01:48]}  Rxa3 {[%clk 0:01:59]} 37. Rxf7+ {[%clk 0:01:48]}  Kc6 {[%clk 0:01:59]} 38. Ng5 {[%clk 0:01:48]}  Ra1+ {[%clk 0:01:57]} 39. Ke2 {[%clk 0:01:47]}  a4 {[%clk 0:01:58]} 40. Nxe6 {[%clk 0:01:48]}  a3 {[%clk 0:01:59]} 41. Rc7+ {[%clk 0:01:48]}  Kb6 {[%clk 0:01:57]} 42. Bd8 {[%clk 0:01:48]}  c4 {[%clk 0:01:50]} 43. Rxc4+ {[%clk 0:01:47]}  Kb5 {[%clk 0:01:50]} 44. Rd4 {[%clk 0:01:43]}  a2 {[%clk 0:01:50]} 45. Rxd5+ {[%clk 0:01:42]}  Kb4 {[%clk 0:01:49]} 46. Ra5 {[%clk 0:01:42]}  Kb3 {[%clk 0:01:49]} 47. f4 {[%clk 0:01:34]}  Rg1 {[%clk 0:01:42]} 48. Kf3 {[%clk 0:01:30]}  a1=Q {[%clk 0:01:42]} 49. Rxa1 {[%clk 0:01:30]}  Rxa1 {[%clk 0:01:41]} 50. f5 {[%clk 0:01:31]}  Kc4 {[%clk 0:01:42]} 51. g4 {[%clk 0:01:28]}  Kd5 {[%clk 0:01:42]} 52. Bc7 {[%clk 0:01:27]}  Rf1+ {[%clk 0:01:40]} 53. Kg3 {[%clk 0:01:27]}  Ke4 {[%clk 0:01:40]} 54. f6 {[%clk 0:01:25]}  Rg1+ {[%clk 0:01:40]} 55. Kh4 {[%clk 0:01:25]}  Kf3 {[%clk 0:01:33]} 56. f7 {[%clk 0:01:19]}  Rxg4+ {[%clk 0:01:34]} 57. Kh5 {[%clk 0:01:19]}  Rf4 {[%clk 0:01:33]} 58. Nxf4 {[%clk 0:01:19]} 1-0


[Site "https://www.chess.com"]

[Event "Titled Tuesday Blitz January 31 Early 2023"]
[White "Moksh Amit Doshi"]
[Black "Hoffmann, Asa"]
[WhiteFideId "25064967"]
[BlackFideId "2001470"]
[WhiteElo "2401"]
[BlackElo "2185"]
[Result "1-0"]
[Round "02"]
[TimeControl "180+2"]
[Date "2023.01.31"]
[WhiteClock "0:01:46"]
[BlackClock "0:01:24"]

1. c4 {[%clk 0:02:51]}  Nf6 {[%clk 0:02:59]} 2. g3 {[%clk 0:02:49]}  c6 {[%clk 0:02:58]} 3. Bg2 {[%clk 0:02:49]}  e5 {[%clk 0:02:58]} 4. Nf3 {[%clk 0:02:50]}  d6 {[%clk 0:02:57]} 5. Nc3 {[%clk 0:02:49]}  Be6 {[%clk 0:02:57]} 6. b3 {[%clk 0:02:42]}  Be7 {[%clk 0:02:53]} 7. Bb2 {[%clk 0:02:39]}  Nbd7 {[%clk 0:02:52]} 8. d4 {[%clk 0:02:39]}  h6 {[%clk 0:02:45]} 9. O-O {[%clk 0:02:38]}  e4 {[%clk 0:02:42]} 10. Nd2 {[%clk 0:02:33]}  d5 {[%clk 0:02:42]} 11. e3 {[%clk 0:02:32]}  a6 {[%clk 0:02:35]} 12. f3 {[%clk 0:02:32]}  exf3 {[%clk 0:02:32]} 13. Bxf3 {[%clk 0:02:31]}  O-O {[%clk 0:02:31]} 14. Bg2 {[%clk 0:02:16]}  Re8 {[%clk 0:02:27]} 15. Qe2 {[%clk 0:02:16]}  Bg4 {[%clk 0:02:26]} 16. Qd3 {[%clk 0:02:15]}  Bb4 {[%clk 0:02:22]} 17. cxd5 {[%clk 0:02:13]}  cxd5 {[%clk 0:02:20]} 18. Nxd5 {[%clk 0:02:13]}  Nxd5 {[%clk 0:02:17]} 19. Bxd5 {[%clk 0:02:14]}  Nf6 {[%clk 0:02:13]} 20. Bxb7 {[%clk 0:02:11]}  Rb8 {[%clk 0:02:02]} 21. Bg2 {[%clk 0:02:11]}  a5 {[%clk 0:01:59]} 22. Nc4 {[%clk 0:02:10]}  a4 {[%clk 0:01:58]} 23. e4 {[%clk 0:02:09]}  a3 {[%clk 0:01:56]} 24. Bxa3 {[%clk 0:02:08]}  Bxa3 {[%clk 0:01:52]} 25. Nxa3 {[%clk 0:02:09]}  Qe7 {[%clk 0:01:51]} 26. Nc4 {[%clk 0:02:07]}  Nxe4 {[%clk 0:01:50]} 27. Rae1 {[%clk 0:02:00]}  f5 {[%clk 0:01:49]} 28. h3 {[%clk 0:01:59]}  Bh5 {[%clk 0:01:49]} 29. Rxf5 {[%clk 0:01:58]}  Nc5 {[%clk 0:01:33]} 30. Rxe7 {[%clk 0:01:49]}  Nxd3 {[%clk 0:01:31]} 31. Rxe8+ {[%clk 0:01:50]}  Bxe8 {[%clk 0:01:30]} 32. Bd5+ {[%clk 0:01:48]}  Kh7 {[%clk 0:01:29]} 33. Be4 {[%clk 0:01:48]}  Bg6 {[%clk 0:01:24]} 34. Bxd3 {[%clk 0:01:46]}  Bxf5 {[%clk 0:01:24]} 35. Bxf5+ {[%clk 0:01:47]}  Kh8 {[%clk 0:01:24]} 36. d5 {[%clk 0:01:46]} 1-0


[Site "https://www.chess.com"]

[Event "Titled Tuesday Blitz January 31 Early 2023"]
[White "Pavlidou, Ekaterini"]
[Black "Defend, Balint"]
[WhiteFideId "4213262"]
[BlackFideId "17004853"]
[WhiteElo "2088"]
[BlackElo "1673"]
[Result "0-1"]
[Round "02"]
[TimeControl "180+2"]
[Date "2023.01.31"]
[WhiteClock "0:01:23"]
[BlackClock "0:01:54"]

1. d4 {[%clk 0:03:00]}  Nf6 {[%clk 0:02:59]} 2. c4 {[%clk 0:03:00]}  e6 {[%clk 0:03:00]} 3. Nc3 {[%clk 0:03:00]}  Bb4 {[%clk 0:02:59]} 4. Qb3 {[%clk 0:02:59]}  c5 {[%clk 0:02:58]} 5. e3 {[%clk 0:02:56]}  Ne4 {[%clk 0:02:58]} 6. Nf3 {[%clk 0:02:55]}  Qa5 {[%clk 0:02:56]} 7. Bd2 {[%clk 0:02:54]}  Nxd2 {[%clk 0:02:54]} 8. Nxd2 {[%clk 0:02:54]}  Bxc3 {[%clk 0:02:54]} 9. bxc3 {[%clk 0:02:53]}  Qc7 {[%clk 0:02:52]} 10. d5 {[%clk 0:02:53]}  d6 {[%clk 0:02:49]} 11. e4 {[%clk 0:02:51]}  e5 {[%clk 0:02:49]} 12. Be2 {[%clk 0:02:48]}  O-O {[%clk 0:02:46]} 13. Nf1 {[%clk 0:02:48]}  g6 {[%clk 0:02:45]} 14. g4 {[%clk 0:02:47]}  f5 {[%clk 0:02:42]} 15. gxf5 {[%clk 0:02:46]}  gxf5 {[%clk 0:02:43]} 16. Rg1+ {[%clk 0:02:44]}  Kh8 {[%clk 0:02:43]} 17. exf5 {[%clk 0:02:44]}  Bxf5 {[%clk 0:02:42]} 18. Ne3 {[%clk 0:02:44]}  Bg6 {[%clk 0:02:38]} 19. h4 {[%clk 0:02:43]}  Nd7 {[%clk 0:02:34]} 20. h5 {[%clk 0:02:42]}  Be4 {[%clk 0:02:33]} 21. h6 {[%clk 0:02:31]}  Bg6 {[%clk 0:02:31]} 22. Qd1 {[%clk 0:02:22]}  Nf6 {[%clk 0:02:30]} 23. Bf3 {[%clk 0:02:18]}  Qf7 {[%clk 0:02:26]} 24. Qe2 {[%clk 0:02:14]}  Rg8 {[%clk 0:02:22]} 25. Rg3 {[%clk 0:02:11]}  Raf8 {[%clk 0:02:21]} 26. O-O-O {[%clk 0:02:08]}  Nh5 {[%clk 0:02:12]} 27. Bxh5 {[%clk 0:01:53]}  Bxh5 {[%clk 0:02:12]} 28. Rxg8+ {[%clk 0:01:33]}  Rxg8 {[%clk 0:02:11]} 29. Qb2 {[%clk 0:01:30]}  Bxd1 {[%clk 0:02:06]} 30. Nxd1 {[%clk 0:01:30]}  b6 {[%clk 0:01:59]} 31. Qd2 {[%clk 0:01:29]}  Qf4 {[%clk 0:01:57]} 32. Ne3 {[%clk 0:01:29]}  Rg6 {[%clk 0:01:55]} 33. a4 {[%clk 0:01:23]}  Rxh6 {[%clk 0:01:54]} 34. Kb2 {[%clk 0:01:23]}  Rh2 {[%clk 0:01:54]} 0-1


[Site "https://www.chess.com"]

[Event "Titled Tuesday Blitz January 31 Early 2023"]
[White "Bernat, David"]
[Black "Colas, Joshua"]
[WhiteFideId "2099225"]
[BlackFideId "2044447"]
[WhiteElo "1862"]
[BlackElo "2342"]
[Result "0-1"]
[Round "02"]
[TimeControl "180+2"]
[Date "2023.01.31"]
[WhiteClock "0:00:13"]
[BlackClock "0:00:21"]

1. c4 {[%clk 0:02:59]}  e5 {[%clk 0:02:56]} 2. Nc3 {[%clk 0:03:00]}  Nc6 {[%clk 0:02:56]} 3. g3 {[%clk 0:03:00]}  g6 {[%clk 0:02:55]} 4. Bg2 {[%clk 0:03:01]}  Bg7 {[%clk 0:02:56]} 5. d3 {[%clk 0:03:01]}  d6 {[%clk 0:02:56]} 6. e4 {[%clk 0:03:01]}  f5 {[%clk 0:02:55]} 7. Nge2 {[%clk 0:03:02]}  Nf6 {[%clk 0:02:56]} 8. O-O {[%clk 0:03:02]}  O-O {[%clk 0:02:56]} 9. exf5 {[%clk 0:03:02]}  Bxf5 {[%clk 0:02:56]} 10. d4 {[%clk 0:03:01]}  Kh8 {[%clk 0:02:47]} 11. h3 {[%clk 0:03:00]}  exd4 {[%clk 0:02:42]} 12. Nxd4 {[%clk 0:02:58]}  Nxd4 {[%clk 0:02:43]} 13. Qxd4 {[%clk 0:02:57]}  Ne4 {[%clk 0:02:42]} 14. Qe3 {[%clk 0:02:39]}  Nxc3 {[%clk 0:02:40]} 15. bxc3 {[%clk 0:02:40]}  b6 {[%clk 0:02:34]} 16. g4 {[%clk 0:02:39]}  Bd7 {[%clk 0:02:31]} 17. Qg5 {[%clk 0:02:21]}  Qxg5 {[%clk 0:02:19]} 18. Bxg5 {[%clk 0:02:22]}  Rae8 {[%clk 0:02:20]} 19. Rac1 {[%clk 0:02:12]}  Re2 {[%clk 0:02:17]} 20. Rfe1 {[%clk 0:02:06]}  Rfxf2 {[%clk 0:02:13]} 21. Rxe2 {[%clk 0:01:59]}  Rxe2 {[%clk 0:02:14]} 22. Bd8 {[%clk 0:01:57]}  c5 {[%clk 0:02:07]} 23. Bc7 {[%clk 0:01:56]}  Be5 {[%clk 0:02:06]} 24. Bb8 {[%clk 0:01:54]}  Rxa2 {[%clk 0:02:05]} 25. Rd1 {[%clk 0:01:52]}  Bxc3 {[%clk 0:01:55]} 26. Rxd6 {[%clk 0:01:49]}  Bd4+ {[%clk 0:01:55]} 27. Kf1 {[%clk 0:01:42]}  Rf2+ {[%clk 0:01:36]} 28. Ke1 {[%clk 0:01:33]}  Rxg2 {[%clk 0:01:33]} 29. Rxd7 {[%clk 0:01:33]}  Rc2 {[%clk 0:01:34]} 30. Bxa7 {[%clk 0:01:32]}  Rxc4 {[%clk 0:01:32]} 31. Bxb6 {[%clk 0:01:31]}  Rc3 {[%clk 0:01:32]} 32. Rxd4 {[%clk 0:01:29]}  Rxh3 {[%clk 0:01:08]} 33. Bxc5 {[%clk 0:01:29]}  h5 {[%clk 0:01:05]} 34. g5 {[%clk 0:01:27]}  Rg3 {[%clk 0:01:04]} 35. Be7 {[%clk 0:01:27]}  Re3+ {[%clk 0:01:05]} 36. Kf2 {[%clk 0:01:27]}  Rxe7 {[%clk 0:01:05]} 37. Rd6 {[%clk 0:01:19]}  Kg7 {[%clk 0:01:04]} 38. Kg3 {[%clk 0:01:19]}  Re4 {[%clk 0:01:02]} 39. Rd7+ {[%clk 0:01:19]}  Kf8 {[%clk 0:01:02]} 40. Rd5 {[%clk 0:01:16]}  Rg4+ {[%clk 0:00:59]} 41. Kf3 {[%clk 0:01:14]}  Kf7 {[%clk 0:01:00]} 42. Ra5 {[%clk 0:01:14]}  Rg1 {[%clk 0:00:56]} 43. Kf4 {[%clk 0:01:11]}  Rf1+ {[%clk 0:00:52]} 44. Kg3 {[%clk 0:01:11]}  Rf5 {[%clk 0:00:52]} 45. Ra7+ {[%clk 0:01:09]}  Kg8 {[%clk 0:00:52]} 46. Ra8+ {[%clk 0:01:08]}  Kg7 {[%clk 0:00:52]} 47. Ra7+ {[%clk 0:01:08]}  Kf8 {[%clk 0:00:52]} 48. Ra8+ {[%clk 0:01:08]}  Ke7 {[%clk 0:00:53]} 49. Ra7+ {[%clk 0:01:08]}  Kd8 {[%clk 0:00:49]} 50. Kh4 {[%clk 0:01:04]}  Rf4+ {[%clk 0:00:48]} 51. Kh3 {[%clk 0:01:05]}  Rg4 {[%clk 0:00:47]} 52. Ra5 {[%clk 0:01:03]}  Kd7 {[%clk 0:00:46]} 53. Ra7+ {[%clk 0:01:02]}  Ke6 {[%clk 0:00:43]} 54. Ra5 {[%clk 0:00:53]}  Re4 {[%clk 0:00:40]} 55. Ra1 {[%clk 0:00:22]}  Kf5 {[%clk 0:00:34]} 56. Rg1 {[%clk 0:00:19]}  Rf4 {[%clk 0:00:20]} 57. Rg2 {[%clk 0:00:17]}  Rg4 {[%clk 0:00:19]} 58. Rxg4 {[%clk 0:00:11]}  hxg4+ {[%clk 0:00:20]} 59. Kh4 {[%clk 0:00:12]}  g3 {[%clk 0:00:20]} 60. Kxg3 {[%clk 0:00:11]}  Kxg5 {[%clk 0:00:21]} 61. Kf3 {[%clk 0:00:12]}  Kh4 {[%clk 0:00:21]} 62. Kg2 {[%clk 0:00:12]}  Kg4 {[%clk 0:00:21]} 63. Kf2 {[%clk 0:00:13]}  Kh3 {[%clk 0:00:21]} 0-1


[Site "https://www.chess.com"]

[Event "Titled Tuesday Blitz January 31 Early 2023"]
[White "Parpiev, Isaak"]
[Black "Orujov, Elshad"]
[WhiteFideId "34281576"]
[BlackFideId "13403540"]
[WhiteElo "2167"]
[BlackElo "2304"]
[Result "1-0"]
[Round "02"]
[TimeControl "180+2"]
[Date "2023.01.31"]
[WhiteClock "0:00:49"]
[BlackClock "0:00:02"]

1. Nf3 {[%clk 0:03:00]}  Nf6 {[%clk 0:02:59]} 2. g3 {[%clk 0:03:01]}  d5 {[%clk 0:02:59]} 3. Bg2 {[%clk 0:03:02]}  c5 {[%clk 0:03:00]} 4. O-O {[%clk 0:03:02]}  Nc6 {[%clk 0:03:00]} 5. d3 {[%clk 0:03:03]}  e5 {[%clk 0:02:53]} 6. Nbd2 {[%clk 0:03:03]}  Be7 {[%clk 0:02:53]} 7. e4 {[%clk 0:03:04]}  O-O {[%clk 0:02:52]} 8. c3 {[%clk 0:02:57]}  d4 {[%clk 0:02:52]} 9. c4 {[%clk 0:02:55]}  h6 {[%clk 0:02:50]} 10. Ne1 {[%clk 0:02:55]}  Be6 {[%clk 0:02:47]} 11. h3 {[%clk 0:02:55]}  Nd7 {[%clk 0:02:45]} 12. f4 {[%clk 0:02:54]}  f5 {[%clk 0:02:45]} 13. exf5 {[%clk 0:02:51]}  Bxf5 {[%clk 0:02:45]} 14. Ne4 {[%clk 0:02:49]}  Qc7 {[%clk 0:02:29]} 15. g4 {[%clk 0:02:12]}  Bxe4 {[%clk 0:02:24]} 16. Bxe4 {[%clk 0:02:13]}  exf4 {[%clk 0:02:25]} 17. Ng2 {[%clk 0:02:13]}  Bd6 {[%clk 0:02:22]} 18. Nh4 {[%clk 0:02:12]}  f3 {[%clk 0:02:08]} 19. Bd5+ {[%clk 0:02:10]}  Kh7 {[%clk 0:02:06]} 20. Be4+ {[%clk 0:02:09]}  Kg8 {[%clk 0:02:05]} 21. Rxf3 {[%clk 0:02:01]}  Rxf3 {[%clk 0:01:45]} 22. Qxf3 {[%clk 0:01:59]}  Nf6 {[%clk 0:01:28]} 23. Bxh6 {[%clk 0:01:23]}  Ne5 {[%clk 0:00:29]} 24. Bd5+ {[%clk 0:01:08]}  Kh8 {[%clk 0:00:19]} 25. Qf5 {[%clk 0:00:59]}  Nxd5 {[%clk 0:00:14]} 26. cxd5 {[%clk 0:01:00]}  gxh6 {[%clk 0:00:14]} 27. Qf6+ {[%clk 0:01:00]}  Kg8 {[%clk 0:00:10]} 28. Qe6+ {[%clk 0:01:00]}  Kg7 {[%clk 0:00:06]} 29. Nf5+ {[%clk 0:00:59]}  Kh8 {[%clk 0:00:02]} 30. Qxh6+ {[%clk 0:00:59]}  Kg8 {[%clk 0:00:02]} 31. Qe6+ {[%clk 0:00:54]}  Kh8 {[%clk 0:00:02]} 32. Nxd6 {[%clk 0:00:50]}  Rf8 {[%clk 0:00:02]} 33. Qxe5+ {[%clk 0:00:49]}  Kg8 {[%clk 0:00:02]} 34. Qg5+ {[%clk 0:00:49]} 1-0


[Site "https://www.chess.com"]